Cogmind - Beta 13 @@@ ROGUE MODE // 2024.03.31 @ 19:00:28 Player: firstiteration Result: Destroyed by G-47 Trooper with Particle Gun Performance ------------- Evolutions (2) 1000 Regions Visited (3) 600 Robots Destroyed (24) 120 Value Destroyed (447) 447 Prototype IDs (0) 0 Alien Tech Used (0) 0 Bonus (0) 0 TOTAL SCORE: 2167 Bonus ------- None Cogmind --------- Core Integrity 0/550 Matter 52/300 Energy 74/100 System Corruption 0% Temperature Hot (251) Movement Core (50) Location -8/Materials Parts ------- > --- POWER (1) -------- (None) > --- PROPULSION (4) --- (None) > --- UTILITY (4) ------ (None) > --- WEAPON (2) ------- (None) > --- INVENTORY (5) ---- (None) Peak State ------------ > --- POWER ------------ Ion Engine > --- PROPULSION ------- Aluminum Leg Aluminum Leg > --- UTILITY ---------- Small Storage Unit Subdweller Optics Makeshift System Restoration Module > --- WEAPON ----------- Improved Light Cannon Improved Light Cannon > --- INVENTORY -------- Ion Engine Subdweller Beam Cannon Improved Light Cannon Improved Light Cannon Grenade Launcher [Rating: 14] Favorites ----------- Power Ion Engine Engine Ion Engine Propulsion Aluminum Leg Leg Aluminum Leg Utility Small Storage Unit Device Structural Scanner Storage Small Storage Unit Weapon EM Pulse Gun Energy Gun EM Pulse Gun Energy Cannon Subdweller Beam Cannon Ballistic Cannon Improved Light Cannon Launcher Grenade Launcher Build | -11 -10 -10 -8 ------- Run | Yrd Mat Sub Mat Slots Evolved 4 | . . . 4 Power . | . . . . Propulsion 2 | . . . 2 Utility 2 | . . . 2 Weapon . | . . . . Parts Attached 24 | 6 8 4 6 Power 5 | 1 2 1 1 Engine 5 | 1 2 1 1 Core . | . . . . Reactor . | . . . . Propulsion 4 | 2 2 . . Treads . | . . . . Leg 4 | 2 2 . . Wheel . | . . . . Hover . | . . . . Flight . | . . . . Utility 4 | 1 1 1 1 Device 3 | . 1 1 1 Storage 1 | 1 . . . Processor . | . . . . Hackware . | . . . . Protection . | . . . . Artifact . | . . . . Weapon 11 | 2 3 2 4 Energy Gun 2 | 2 . . . Energy Cannon 1 | . . . 1 Ballistic Gun . | . . . . Ballistic Cannon 6 | . 2 2 2 Launcher 2 | . 1 . 1 Special Weapon . | . . . . Impact Weapon . | . . . . Slashing Weapon . | . . . . Piercing Weapon . | . . . . Special Melee Weapon . | . . . . Unidentified Prototypes . | . . . . Corrupted Parts 1 | . 1 . . System Corruption 1 | . 1 . . Parts Lost 16 | . 1 2 13 Power 3 | . . 1 2 Propulsion 3 | . 1 . 2 Utility 3 | . . . 3 Weapon 7 | . . 1 6 Highest Loss Streak 13 | . 1 2 13 To Critical Strikes . | . . . . Average Slot Usage (%) 91 | . 96 99 55 Engine 12 | . 13 14 5 Leg 25 | . 26 28 12 Device 12 | . 12 14 12 Storage 13 | . 14 14 8 Energy Gun 10 | . 16 . . Ballistic Cannon 14 | . 10 27 14 Launcher 1 | . 1 . . Naked Turns 7 | . . . 7 Heaviest Build 25 | 14 18 20 25 Greatest Support 20 | 20 20 20 20 Greatest Overweight (x) 2 | 1 1 . 2 Average Overweight (x) . | . . . . Largest Inventory Capacity 8 | 8 8 8 8 Average Capacity 7 | 7 8 8 7 Most Carried 8 | 3 8 7 6 Average Carried 4 | 2 5 5 3 Final Capacity 8 | 8 8 8 5 Final Carried 6 | 3 6 6 . Class Distribution -------------------- 100% | Mutant Dominant Class ---------------- Mutant | -10/Materials Mutant | -10/Subcaves Mutant | -8/Materials Resources | -11 -10 -10 -8 ----------- Run | Yrd Mat Sub Mat Matter Collected 479 | 260 37 144 38 Remotely . | . . . . Salvage Created 686 | 160 420 106 . Parts 53 | 9 35 9 . Haulers Intercepted 1 | . 1 . . Recyclers Shooed . | . . . . Parts Field Recycled . | . . . . Retrieved Matter . | . . . . Parts Self-Destructed 3 | . . 3 . Prevented . | . . . . Kills | -11 -10 -10 -8 ------- Run | Yrd Mat Sub Mat Combat Hostiles Destroyed 14 | . 10 4 . Guns 7 | . 7 . . Cannons 5 | . 1 4 . Classes Destroyed 9 | 3 5 1 . Worker 2 | 2 . . . Builder 1 | . 1 . . Tunneler 3 | 2 1 . . Hauler 1 | . 1 . . Recycler 1 | 1 . . . Watcher 2 | . 2 . . Swarmer 6 | . 6 . . Grunt 4 | . 4 . . Subdweller 4 | . . 4 . Best Kill Streak 5 | 4 5 2 . Combat Bots Only 3 | . 3 2 . Max Kills in Single Turn 2 | 1 2 1 . Gunslinging . | . . . . Exploded . | . . . . Melee . | . . . . Uniques/NPCs Destroyed . | . . . . Combat | -11 -10 -10 -8 -------- Run | Yrd Mat Sub Mat Hostile Shots Fired 194 | . 37 32 125 Missed 39 | . 7 11 21 Damage Taken 2483 | . 353 444 1686 Core 671 | . 43 70 558 Absorbed by Shields . | . . . . Regen/Repaired (Parts) 93 | . 93 . . Core Remaining (%) 77 | 100 . 54 . Volleys Fired 79 | 8 31 22 18 Largest 2 | 2 2 2 2 Hottest 80 | 80 80 78 80 Shots Fired 149 | 15 59 44 31 Gun 59 | 15 44 . . Cannon 88 | . 13 44 31 Launcher 2 | . 2 . . Special . | . . . . Kinetic 84 | . 13 44 27 Thermal 4 | . . . 4 Explosive 2 | . 2 . . Electromagnetic 59 | 15 44 . . Robot Hit Streak 9 | 1 9 7 6 Robot Miss Streak 3 | 3 2 3 3 Penetration Max . | . . . . Secondary Targets . | . . . . Shots Hit Robots 78 | 5 34 21 18 Core Hits 34 | 5 18 8 3 Critical Kills . | . . . . Critical Parts Destroyed . | . . . . Critical Strikes 5 | . 3 2 . Blast 3 | . 1 2 . Corrupt 2 | . 2 . . Melee Attacks . | . . . . Impact . | . . . . Slashing . | . . . . Piercing . | . . . . Sneak Attacks . | . . . . Combat Hostiles . | . . . . Follow-up Attacks . | . . . . Damage Inflicted 1544 | 83 594 362 505 Guns 460 | 83 377 . . Cannons 1004 | . 137 362 505 Explosions 80 | . 80 . . Melee . | . . . . Ramming . | . . . . Kinetic 894 | . 137 362 395 Thermal 190 | . 80 . 110 Explosive . | . . . . Electromagnetic 460 | 83 377 . . Impact . | . . . . Slashing . | . . . . Piercing . | . . . . Highest Corruption 1 | . 1 1 . Average Corruption 1 | . 1 1 . Corruption Purged . | . . . . Corruption Blocked . | . . . . Effects 5 | . 2 3 . Matter Fused 1 | . 1 . . Parts Fused 1 | . . 1 . Data Loss (minor) 2 | . 1 1 . Data Loss (major) 1 | . . 1 . Overload Shots . | . . . . Overflow Damage 24 | . . . 24 Projectiles 24 | . . . 24 Explosions . | . . . . Melee . | . . . . Knockbacks 16 | . 4 2 10 Impact . | . . . . Kinetic 15 | . 4 2 9 Secondary 1 | . . . 1 Self-Inflicted Damage . | . . . . Shots . | . . . . Rammed 1 | . . . 1 Targets Rammed 1 | . . . 1 Kicked . | . . . . Crushed . | . . . . Highest Temperature 386 | 54 144 . 386 Average Temperature 99 | 22 42 . 206 Received Heat Transfer 1254 | . 189 75 990 Siege Activations . | . . . . Robots Corrupted 2 | . 2 . . Combat Hostiles 2 | . 2 . . Parts Fried 3 | . 3 . . Impact Corruptions . | . . . . Robots Melted . | . . . . Combat Hostiles . | . . . . Parts Melted . | . . . . Heat Transferred 298 | . 150 . 148 Parts Sabotaged . | . . . . Parts Stolen . | . . . . Parts Stripped . | . . . . Power Chain Reactions 1 | . 1 . . Alert | -11 -10 -10 -8 ------- Run | Yrd Mat Sub Mat Peak Influence 273 | 25 273 . 40 Initial 39 | . 16 . 39 Average 87 | 9 116 . 26 Maximum Alert Level 1 | . 1 . . Low Security (%) 93 | 100 90 . 100 Level 1 6 | . 9 . . Level 2 . | . . . . Level 3 . | . . . . Level 4 . | . . . . Level 5 . | . . . . High Security . | . . . . Max Security . | . . . . Squads Dispatched 3 | . 1 . 2 Investigation 2 | . . . 2 Extermination . | . . . . Reinforcement 1 | . 1 . . Assault . | . . . . Garrison . | . . . . Intercept . | . . . . Searches Triggered . | . . . . Construction Impeded . | . . . . Haulers Reinforced . | . . . . Active Scanning Responses . | . . . . Cargo Convoy Interrupts . | . . . . Stealth | -11 -10 -10 -8 --------- Run | Yrd Mat Sub Mat Distress Signals 3 | . 3 . . Communications Jammed . | . . . . Distress Signals . | . . . . Times Spotted 27 | . 17 4 6 Peak Tracking Total 5 | . 4 2 5 Tactical Retreats 1 | . 1 . . Traps | -11 -10 -10 -8 ------- Run | Yrd Mat Sub Mat Traps Triggered 1 | . . . 1 Indirectly . | . . . . Trap Hack Attempts . | . . . . Triggered . | . . . . Disarmed . | . . . . Reprogrammed . | . . . . Reused . | . . . . Traps Extracted . | . . . . Installed . | . . . . Triggered . | . . . . Machines | -11 -10 -10 -8 ---------- Run | Yrd Mat Sub Mat Machines Disabled 1 | . 1 . . Max in Single Turn 1 | . 1 . . Machines Repaired . | . . . . Machines Dismantled . | . . . . Machines Sabotaged . | . . . . Overloaded Fab Kills . | . . . . Hacking | -11 -10 -10 -8 --------- Run | Yrd Mat Sub Mat Machines Accessed 3 | . 2 . 1 Terminals 1 | . 1 . . Fabricators . | . . . . Repair Stations 2 | . 1 . 1 Recycling Units . | . . . . Scanalyzers . | . . . . Garrison Access . | . . . . Total Hacks 12 | . 9 . 3 Successful 4 | . 4 . . Failed 8 | . 5 . 3 Catastrophic . | . . . . Database Lockouts . | . . . . Manual 4 | . 4 . . Terminals 4 | . 4 . . Fabricators . | . . . . Repair Stations 8 | . 5 . 3 Recycling Units . | . . . . Scanalyzers . | . . . . Garrison Access . | . . . . Terminal Hacks . | . . . . Fabricator Hacks . | . . . . Repair Station Hacks 4 | . 4 . . Scan Component 2 | . 2 . . Repair 2 | . 2 . . Recycling Unit Hacks . | . . . . Scanalyzer . | . . . . Garrison Access Hacks . | . . . . Unauthorized Hacks . | . . . . Terminals . | . . . . Fabricators . | . . . . Repair Stations . | . . . . Recycling Units . | . . . . Scanalyzers . | . . . . Garrison Access . | . . . . Data Cores Recovered . | . . . . Used . | . . . . Hacking Detections 2 | . 1 . 1 Full Trace Events 1 | . . . 1 Feedback Events . | . . . . Feedback Blocked . | . . . . Robot Schematics Acquired . | . . . . Robots Built . | . . . . Authchips . | . . . . Time . | . . . . Total Robot Build Rating . | . . . . Part Schematics Acquired . | . . . . Parts Built . | . . . . Authchips . | . . . . Time . | . . . . Total Part Build Rating . | . . . . Parts Repaired 2 | . 2 . . Time 52 | . 52 . . Parts Recycled . | . . . . Recycled Matter . | . . . . Retrieved Matter . | . . . . Retrieved Components . | . . . . Parts Scanalyzed . | . . . . Part Schematics Acquired . | . . . . Parts Damaged . | . . . . Bothacking | -11 -10 -10 -8 ------------ Run | Yrd Mat Sub Mat Used RIF Installer . | . . . . Robots Hacked . | . . . . Non-combat . | . . . . Combat . | . . . . Robot Hacks Applied . | . . . . Relay Couplers Released . | . . . . Fabnet Peak Effective % . | . . . . Robots Rewired . | . . . . Allies Hacked . | . . . . Hacks Repelled . | . . . . Allies | -11 -10 -10 -8 -------- Run | Yrd Mat Sub Mat Total Allies . | . . . . Largest Group . | . . . . Highest-Rated Group . | . . . . Highest-Rated Ally . | . . . . Total Orders . | . . . . Ally Attacks . | . . . . Total Damage . | . . . . Kills . | . . . . Allies Corrupted . | . . . . Allies Melted . | . . . . Intel | -11 -10 -10 -8 ------- Run | Yrd Mat Sub Mat Robot Analysis Total . | . . . . Derelict Logs Recovered . | . . . . Drone Launches . | . . . . Drone Recoveries . | . . . . Exploration | -11 -10 -10 -8 ------------- Run | Yrd Mat Sub Mat Turns Passed 1197 | 143 680 227 147 Spaces Moved 671 | 84 406 128 53 Core 19 | 5 . . 14 Treads . | . . . . Legs 652 | 79 406 128 39 Wheels . | . . . . Hover . | . . . . Flight . | . . . . Fastest Speed 50 | 50 120 120 50 Average Speed 123 | 127 120 120 157 Slowest Speed 190 | 190 190 120 190 Overloaded Moves . | . . . . Propulsion Burnouts . | . . . . Robots Hopped . | . . . . Cave-ins Triggered . | . . . . Exploration Rate (%) 19 | 5 59 8 7 Regions Visited 3 Branch Regions 1 Pre-discovered Areas . | . . . . Known Exits Taken . | . . . . Unknown Exits Taken 3 | 1 1 1 . Scrap Searched . | . . . . Spaces Dug . | . . . . Terrain Destroyed 19 | . 18 . 1 Melee . | . . . . Projectile 2 | . 1 . 1 AOE 17 | . 17 . . Terrain Rammed . | . . . . Walls Destroyed . | . . . . Machines Disabled . | . . . . Actions | -11 -10 -10 -8 --------- Run | Yrd Mat Sub Mat Total 886 | 102 541 158 85 Wait 87 | 2 78 . 7 Move 668 | 83 405 127 53 Hop . | . . . . Pick Up 18 | 3 12 3 . Fast Attach 7 | 6 1 . . Attach 15 | . 5 4 6 Detach 1 | . . 1 . Swap 2 | . 2 . . Drop 8 | . 7 1 . Fire 79 | 8 31 22 18 Melee . | . . . . Ram 1 | . . . 1 Kick . | . . . . Crush . | . . . . Escape Stasis . | . . . . Rewire . | . . . . Trap . | . . . . Miscellaneous . | . . . . Route ------- -11/Scrapyard -10/Materials (discovered 4 exits: [*Mat x2] / [*Min] / [*Sub]) -10/Subcaves -8/Materials History --------- Turn | Location | Event 53 | -11/Scrapyard | Discovered new exit (range 14) 144 | -11/Scrapyard | Entered Materials 307 | -10/Materials | Build established: Mutant 378 | -10/Materials | Discovered new exit (range 16) 607 | -10/Materials | Repaired Aluminum Leg 634 | -10/Materials | Repaired Ion Engine 651 | -10/Materials | Discovered new exit (range 13) 695 | -10/Materials | Discovered new exit (range 11) 719 | -10/Materials | Discovered new exit (range 13) 824 | -10/Materials | Entered Subcaves 874 | -10/Subcaves | Shifting Twisted Machinery released Mak. System Restoration Module 874 | -10/Subcaves | Discovered new exit (range 8) 1051 | -10/Subcaves | Entered Materials 1051 | -8/Materials | Evolved 4 slots: Propulsion x2, Utility x2 1182 | -8/Materials | Core integrity fell below 50% 1193 | -8/Materials | Core integrity fell below 20% 1198 | -8/Materials | Destroyed by G-47 Trooper with Particle Gun Last Messages --------------- Imp. Light Cannon destroyed. G-47 Trooper destroyed. [Achievement: Oops] Slammed into G-47 Trooper. Acquired 7 matter. Acquired 14 matter. Grenade Launcher destroyed. Acquired 10 matter. Destroyed Aluminum Leg. Sml. Storage Unit destroyed. Destroyed Lgt. Nuclear Core. Sub. Beam Cannon destroyed. Critical hit (Burn: +37). Acquired 5 matter. Acquired 2 matter. Connecting with Repair Station... Current location identified: Materials ALERT: Suspicious activity at Repair Station M001. Dispatching Investigation squad. Critical hit (Burn: +37). Map ----- +----------------------------------------------------+ | ??????# #????????????????????????????????????? | | ?????## #????????????????????????????????????? | | ??????T +????????????????????????????????????? | | ####### #????????????????????????????????????? | | # # ##########???????????????????????????? | | # # # #?#######???????????????????? | | # # # #?# ####????????????????? | | # # # #?? ?????????????????? | | # # # #?? ??????????????????? | | # + + #?? ???????????????????? | | # # # #?? ????????????????????? | | # # # #??# #????????????????????? | | # # # #??# #????????????????????? | | # ##### #??# #????????????????????? | | # #???######+###### +????????????????????? | | # #??####### #????????????????????? | | #######??# #????????????????????? | | ?????????# ##### #????????????????????? | | ???????????????#########+#####?????????????????? | | ???????????????????# % #?????????????????? | | ???????????????????# gg g #?????????????????? | | ???????????????????# %g #?????????????????? | | ???????????????????# #?????????????????? | | ???????????????????#""" """ #?????????????????? | | ???????????????????#"R """ #?????????????????? | | ???????????????????#"""@ """ #?????????????????? | | ???????????????????# #?????????????????? | | ???????????????????###########?????????????????? | | ???????????????????????????????????????????????? | | ???????????????????????????????????????????????? | | ???????????????????????????????????????????????? | | | | | | | | | | | | | | | | | | | | | | | | | | | | | | | | | | | | | | | +----------------------------------------------------+ Best States ------------- Heat Dissipation 31 Energy Generation 10 Energy Capacity 250 Matter Stores 300 Matter Capacity 300 Sight Range 21 Terrain Scan Density 10 Evasion (%) 55 Item Schematics ----------------- None Robot Schematics ------------------ None Fabricated ------------ Nothing Alien Tech Used ----------------- None Achievements -------------- Oops Challenges ------------ None Game ------ Seed XenonRecoilCore Manual? 0 Play Time 00:38:02 Cumulative 7.4 hours Start 2024.03.31 @ 17:42:24 End 2024.03.31 @ 19:00:28 Sessions 1 Manual Loads 0 Difficulty Rogue Special Mode None Game No. 21 Rogue 21 Adventurer 0 Explorer 0 Win Type - Total 0 Types 0/0/0/0/0/0/0/0/0 Lore% 10 Gallery% 11 Achievement% 10 Wizard Run 0 Options --------- Layout 1 ASCII 0 Keyboard 0 Movement Mouse Keybinds 0 Fullscreen 1 Font 24/Smallcaps Map View 50x35 Zoom Use 0% Tactical HUD 0 Map Filters NONE Filters NONE Steam 1 RUN: 8066acee-54bc-4522-a509-b09da0e8a8c0